fUST/lending_fUST_20240114
["ID","MTS","AMOUNT","RATE_DAILY","PERIOD"]
[311548359,1705213838362,-2930.45,0.00028393,3]
[311548361,1705213838371,-2442.04,0.00028393,3]
[311548363,1705213838382,-2000.0,0.000284,2]
[311548364,1705213838391,-2173.32039556,0.00028403,3]
[311548529,1705215032201,-154.9690062,0.00025561,4]
[311548531,1705215032210,-153.51028859,0.00026293,2]
[311548533,1705215032219,-174.616607,0.00026845,2]
[311548535,1705215032228,-31.95199187,0.00026999,2]
[311548592,1705215038317,-3343.85963639,0.00026999,2]
[311548594,1705215038326,-290.79168895,0.00027,2]
[311548596,1705215038335,-1661.45591997,0.00027833,2]
[311548614,1705215038492,-681.32860443,0.00027833,2]
[311548616,1705215038503,-27.01241424,0.00027833,2]
[311548618,1705215038512,-624.52644251,0.00028302,2]
[311548620,1705215038521,-1355.96594736,0.000284,2]
[311548694,1705215041398,-509.25612575,0.000284,2]
[311548730,1705215046290,-134.77792689,0.000284,2]
[311548732,1705215046299,-424.0863999,0.00028402,2]
[311548738,1705215221629,-1956.45098693,0.0002024,2]
[311548739,1705215221745,-39.92757116,0.0002024,2]
[311548763,1705215899012,380.0,0.0002,2]
[311548812,1705216232461,-266.94660645,0.00025505,2]
[311548813,1705216232471,-219.08601926,0.00025506,2]
[311548815,1705216232481,-75.45451674,0.00025507,4]
[311548874,1705216238585,-1030.45969598,0.00025505,2]
[311548875,1705216238594,-79.51448946,0.00025507,4]
[311548876,1705216238604,-166.666666,0.0002602,2]
[311548877,1705216238613,-172.15456236,0.000263,2]
[311548879,1705216238623,-173.47798,0.00026338,2]
[311548881,1705216238642,-697.8261007,0.00026369,2]
[311548883,1705216238653,-100.2433804,0.00026503,2]
[311548924,1705216668728,1086.04795623,0.00019877,5]
[311548926,1705216724702,1352.71667262,0.00019877,5]
[311548927,1705216742705,713.57459087,0.00019877,5]
[311549062,1705217443661,-1466.31228556,0.00021301,2]
[311549063,1705217443671,-686.97313065,0.00024226,2]
[311549064,1705217443680,-219.08601926,0.00024227,2]
[311549065,1705217443690,-154.95351395,0.00024228,4]
[311549066,1705217443699,-150.0,0.00024269,2]
[311549067,1705217443709,-173.47798,0.00025502,2]
[311549068,1705217443718,-429.1419031,0.000265,2]
[311549181,1705218631796,-677.43954104,0.00023352,2]
[311549183,1705218631805,-219.08601926,0.00023353,2]
[311549184,1705218631814,-302.38789115,0.00023354,2]
[311549185,1705218631825,-270.08971773,0.00023354,2]
[311549186,1705218631833,-154.95351395,0.00023355,4]
[311549187,1705218631842,-150.0,0.000244,2]
[311549188,1705218631851,-156.52857959,0.000265,2]
[311549189,1705218631860,-1443.13196936,0.000265,2]
[311549190,1705218631871,-556.86803064,0.000265,2]
[311549191,1705218631880,-259.08185299,0.00026503,2]
[311549245,1705218637916,-12691.38265852,0.00026503,2]
[311549248,1705218637925,-2000.0,0.0002651,2]
[311549250,1705218637934,-929.34384,0.0002651,2]
[311549252,1705218637943,-929.34384,0.0002651,2]
[311549254,1705218637952,-218.689422,0.0002651,2]
[311549256,1705218637961,-920.852974,0.0002652,2]
[311549258,1705218637970,-920.852974,0.0002652,2]
[311549260,1705218637978,-151.0,0.0002652,2]
[311549262,1705218637988,-151.0,0.0002652,2]
[311549264,1705218637996,-151.0,0.0002652,2]
[311549266,1705218638005,-151.0,0.0002652,2]
[311549268,1705218638014,-272.20767046,0.0002652,2]
[311549270,1705218638023,-2000.0,0.0002652,2]
[311549272,1705218638032,-152.725126,0.0002652,2]
[311549274,1705218638041,-929.34384,0.0002652,2]
[311549276,1705218638050,-929.34384,0.0002652,2]
[311549277,1705218638063,-929.34384,0.0002652,2]
[311549279,1705218638071,-929.34384,0.0002652,2]
[311549281,1705218638080,-929.34384,0.0002652,2]
[311549283,1705218638089,-929.34384,0.0002652,2]
[311549285,1705218638098,-929.34384,0.0002652,2]
[311549287,1705218638107,-929.34384,0.0002652,2]
[311549289,1705218638116,-929.34384,0.0002652,2]
[311549292,1705218638127,-929.34384,0.0002652,2]
[311549293,1705218638135,-929.34384,0.0002652,2]
[311549295,1705218638145,-929.34384,0.0002652,2]
[311549297,1705218638154,-929.34384,0.0002652,2]
[311549299,1705218638162,-929.34384,0.0002652,2]
[311549301,1705218638171,-929.34384,0.0002652,2]
[311549303,1705218638180,-929.34384,0.0002652,2]
[311549305,1705218638188,-929.34384,0.0002652,2]
[311549307,1705218638197,-929.343846,0.0002652,2]
[311549309,1705218638206,-2000.0,0.0002653,2]
[311549311,1705218638215,-920.852974,0.0002653,2]
[311549313,1705218638224,-920.852974,0.0002653,2]
[311549315,1705218638234,-920.852974,0.0002653,2]
[311549317,1705218638243,-920.852974,0.0002653,2]
[311549319,1705218638252,-920.852974,0.0002653,2]
[311549321,1705218638260,-920.852974,0.0002653,2]
[311549323,1705218638270,-920.852974,0.0002654,2]
[311549325,1705218638280,-920.852974,0.0002654,2]
[311549328,1705218638289,-920.852974,0.0002654,2]
[311549329,1705218638299,-920.852974,0.0002654,2]
[311549331,1705218638312,-920.852974,0.0002654,2]
[311549333,1705218638321,-920.852974,0.0002654,2]
[311549336,1705218638331,-2000.0,0.0002654,2]
[311549337,1705218638341,-2217.829375,0.0002655,2]
[311549339,1705218638350,-920.852974,0.0002655,2]
[311549341,1705218638360,-920.852974,0.0002655,2]
[311549343,1705218638369,-920.852974,0.0002655,2]
[311549346,1705218638381,-920.852974,0.0002655,2]
[311549348,1705218638390,-920.852974,0.0002655,2]
[311549350,1705218638399,-920.85298142,0.0002655,2]
[311549352,1705218638408,-289.5463958,0.00027,2]
[311549354,1705218638417,-198.8089634,0.00027,2]
[311549356,1705218638427,-198.8089634,0.00027,2]
[311549358,1705218638436,-198.8089634,0.00027,2]
[311549359,1705218638446,-397.6179268,0.00027,2]
[311549360,1705218638456,-198.8089634,0.00027,2]
[311549361,1705218638466,-198.8089634,0.00027,2]
[311549363,1705218638475,-155.71377268,0.000283,2]
[311549365,1705218638484,-155.29196938,0.000284,2]
[311549366,1705218638494,-848.51221584,0.00028401,2]
[311549368,1705218638503,-269.15097932,0.00028401,2]
[311549370,1705218638512,-2707.76569775,0.00028401,5]
[311549372,1705218638522,-1979.64830373,0.00028401,2]
[311549375,1705218638533,-525.7882447,0.00028401,2]
[311549377,1705218638542,-1291.3942081,0.00028401,2]
[311549379,1705218638551,-155.08511295,0.00028401,2]
[311549381,1705218638562,-247.00167655,0.00028401,2]
[311549383,1705218638570,-162.42558552,0.00028401,2]
[311549385,1705218638579,-166.1634504,0.00028401,2]
[311549387,1705218638588,-4341.9697259,0.00028401,2]
[311549389,1705218638597,-202.88164408,0.00028401,2]
[311549391,1705218638606,-750.24229422,0.00028401,2]
[311549393,1705218638615,-462.3510226,0.00028401,2]
[311549395,1705218638624,-325.63251034,0.00028401,2]
[311549397,1705218638634,-155.26235345,0.00028401,2]
[311549399,1705218638643,-1742.54016348,0.00028401,2]
[311549401,1705218638653,-421.33175717,0.00028401,2]
[311549403,1705218638662,-2040.19945881,0.00028401,2]
[311549405,1705218638671,-1158.2624683,0.00028401,2]
[311549407,1705218638680,-618.55885143,0.00028401,2]
[311549409,1705218638689,-155.18522897,0.00028401,2]
[311549422,1705218638698,-1175.22058429,0.00028401,2]
[311549424,1705218638817,-675.50518803,0.00028401,2]
[311549426,1705218638827,-1150.65008109,0.00028401,2]
[311549428,1705218638838,-36993.81765305,0.00028401,2]
[311549430,1705218638847,-261.12680454,0.00028402,2]
[311549432,1705218638856,-8410.4420033,0.00028402,2]
[311549434,1705218638865,-12289.19564603,0.00028403,3]
[311549436,1705218638874,-5068.50643047,0.00028403,2]
[311549438,1705218638884,-5000.0,0.00028403,5]
[311549440,1705218638893,-7633.71743395,0.00028403,3]
[311549442,1705218638902,-195.31936196,0.00028403,2]
[311549444,1705218638911,-382.82594943,0.00028403,2]
[311549446,1705218638920,-5000.0,0.00028403,5]
[311549448,1705218638929,-35839.47870266,0.00028403,3]
[311549450,1705218638939,-5000.0,0.00028403,5]
[311549452,1705218638948,-5000.0,0.00028403,5]
[311549455,1705218638957,-3391.61193568,0.00028403,2]
[311549457,1705218638966,-4455.10271758,0.00028749,2]
[311549459,1705218638975,-155.0,0.00028999,2]
[311549461,1705218638984,-2305.37797556,0.00029,2]
[311549463,1705218638993,-9103.92623029,0.000291,4]
[311549464,1705218639004,-7189.0036531,0.00029401,2]
[311549466,1705218639012,-224.9303038,0.000295,30]
[311549468,1705218639021,-157.59641185,0.00029727,2]
[311549470,1705218639030,-509.22464917,0.0002979,3]
[311549472,1705218639039,-812.130126,0.0002979,7]
[311549474,1705218639048,-41898.59782542,0.000298,2]
[311549476,1705218639059,-155.19515001,0.00029998,2]
[311549478,1705218639070,-1195.46446057,0.00029998,2]
[311549480,1705218639079,-358.04832608,0.00029998,2]
[311549482,1705218639087,-382.62454374,0.00029999,2]
[311549484,1705218639096,-500.0,0.00029999,2]
[311549486,1705218639106,-500.0,0.00029999,2]
[311549488,1705218639115,-500.0,0.00029999,2]
[311549490,1705218639124,-500.0,0.00029999,2]
[311549492,1705218639133,-282.33945818,0.00029999,2]
[311549494,1705218639142,-155.20750907,0.00029999,2]
[311549496,1705218639152,-500.0,0.00029999,2]
[311549498,1705218639161,-500.0,0.00029999,2]
[311549500,1705218639171,-500.0,0.00029999,2]
[311549503,1705218639180,-500.0,0.00029999,2]
[311549505,1705218639189,-500.0,0.00029999,2]
[311549507,1705218639198,-370.90306582,0.00029999,2]
[311549509,1705218639207,-195.58486454,0.00029999,2]
[311549511,1705218639216,-30293.34580126,0.0003,2]
[311549513,1705218639226,-298.8929571,0.0003,2]
[311549515,1705218639235,-6187.7426343,0.0003,2]
[311549517,1705218639244,-2190.2246157,0.0003,2]
[311549519,1705218639253,-18564.33703768,0.0003,2]
[311549521,1705218639262,-699.30852097,0.0003,2]
[311549523,1705218639271,-157.68957749,0.0003,2]
[311549525,1705218639280,-1490.73105159,0.0003,2]
[311549528,1705218639296,-55024.26695833,0.0003,2]
[311549530,1705218639311,-900.48074021,0.0003,2]
[311549532,1705218639321,-27032.45550358,0.0003,2]
[311550450,1705219831988,-154.9690062,0.00022167,4]
[311550452,1705219831997,-848.82727325,0.00022167,2]
[311550454,1705219832007,-266.94660645,0.00022168,2]
[311550455,1705219832016,-173.39857925,0.00022168,2]
[311550456,1705219832029,-45.68744001,0.00022168,2]
[311550458,1705219832039,-421.41185998,0.00022169,5]
[311550653,1705219841123,-251.39133245,0.00022166,2]
[311550695,1705219842992,-46.86950177,0.00022166,2]
[311550696,1705219843002,-518.25275859,0.00022169,5]
[311550697,1705219843014,-995.99886534,0.00022169,5]
[311550744,1705220279912,-7045.22358004,0.00021504,2]
[311550745,1705220280003,-143.78007306,0.00021504,2]
[311550746,1705220289398,295.91,0.00029,120]
[311550780,1705220975841,-298.26083422,0.00022141,2]
[311550781,1705220975881,-154.98450155,0.00022142,4]
[311550782,1705220975916,-2704.5008554,0.0002222,5]
[311550783,1705220975949,-42.56307244,0.00022221,2]
[311550784,1705220976065,-62.67239183,0.00022221,2]
[311550787,1705220992931,-536.70908095,0.00022221,2]
[311550792,1705221021149,200.0,0.00022221,2]
[311550974,1705221039114,200.0,0.00022221,2]
[311551023,1705221041347,-150.0,0.00025,2]
[311551024,1705221041358,-251.3913324,0.00025413,2]
[311551026,1705221041369,-159.87666002,0.00025561,2]
[311551028,1705221041382,-1211.45979924,0.000274,2]
[311551030,1705221041394,-1957.18,0.00028393,3]
[311551032,1705221041404,-3732.22,0.00028393,3]
[311551034,1705221041416,-3110.18,0.00028393,3]
[311551036,1705221041426,-154.95351395,0.000284,2]
[311551037,1705221041436,-1175.22058429,0.00028401,2]
[311551038,1705221041446,-8410.4420033,0.00028401,2]
[311551039,1705221041456,-298.26083422,0.00028401,2]
[311551040,1705221041468,-770.27115574,0.00028401,5]
[311551041,1705221041481,-1150.65008109,0.00028402,2]
[311551042,1705221041492,-7251.8436108,0.00028403,3]
[311551043,1705221041503,-5000.0,0.00028403,5]
[311551044,1705221041527,-1862.63201376,0.00028403,3]
[311551045,1705221041542,-34069.63508667,0.00028403,3]
[311551046,1705221041557,-28733.54503113,0.00028403,3]
[311551047,1705221041570,-6314.62038045,0.00028403,2]
[311551048,1705221041585,-53575.93434291,0.00029,7]
[311551049,1705221041595,-2081.1114357,0.00029,2]
[311551050,1705221041607,-300.0,0.00029,2]
[311551051,1705221041620,-154.98450155,0.00029,2]
[311551052,1705221041636,-2305.37797556,0.00029,2]
[311551053,1705221041648,-261.12680454,0.00029,2]
[311551054,1705221041660,-9103.92623029,0.000291,4]
[311551055,1705221041672,-1000.0,0.00029351,7]
[311551056,1705221041684,-224.9303038,0.000295,30]
[311551057,1705221041697,-509.22464917,0.0002979,3]
[311551058,1705221041710,-4341.9697259,0.00029998,2]
[311551059,1705221041722,-162.42558552,0.00029998,2]
[311551060,1705221041734,-247.00167655,0.00029998,2]
[311551061,1705221041747,-202.88164408,0.00029998,2]
[311551062,1705221041761,-155.26235345,0.00029998,2]
[311551063,1705221041774,-618.55885143,0.00029998,2]
[311551064,1705221041786,-325.63251034,0.00029998,2]
[311551065,1705221041798,-155.18522897,0.00029998,2]
[311551066,1705221041811,-462.3510226,0.00029998,2]
[311551067,1705221041822,-166.1634504,0.00029998,2]
[311551068,1705221041832,-156.54383332,0.00029998,2]
[311551069,1705221041843,-1979.64830373,0.00029998,2]
[311551070,1705221041853,-1742.54016348,0.00029998,2]
[311551071,1705221041864,-1291.3942081,0.00029998,2]
[311551072,1705221041874,-750.24229422,0.00029998,2]
[311551073,1705221041887,-421.33175717,0.00029998,2]
[311551074,1705221041898,-525.7882447,0.00029998,2]
[311551075,1705221041909,-2040.19945881,0.00029998,2]
[311551076,1705221041922,-155.08511295,0.00029998,2]
[311551077,1705221041934,-848.19715843,0.00029998,2]
[311551078,1705221041947,-268.70439064,0.00029998,2]
[311551079,1705221041958,-219.47193112,0.00029998,2]
[311551080,1705221041972,-1033.84844383,0.00029998,2]
[311551081,1705221041983,-170.45968232,0.00029999,2]
[311551082,1705221041993,-2032.6063135,0.0003,3]
[311551083,1705221042004,-1490.73105059,0.0003,2]
[311551084,1705221042015,-900.48074021,0.0003,2]
[311551085,1705221042026,-30293.34580126,0.0003,2]
[311551086,1705221042036,-298.8929571,0.0003,2]
[311551087,1705221042046,-6187.7426343,0.0003,2]
[311551088,1705221042056,-2190.2246157,0.0003,2]
[311551089,1705221042067,-18564.33703768,0.0003,2]
[311551090,1705221042076,-699.30852097,0.0003,2]
[311551091,1705221042087,-820.93250859,0.0003,15]
[311551092,1705221042097,-1163.04068578,0.0003,4]
[311551093,1705221042109,-157.06359402,0.0003,2]
[311551094,1705221042120,-768.79202074,0.0003,5]
[311551095,1705221042133,-192.0,0.0003,2]
[311551096,1705221042144,-155.6407139,0.00030134,4]
[311551097,1705221042154,-2172.51886535,0.00030135,3]
[311551098,1705221042168,-157.59641185,0.00030142,7]
[311551099,1705221042179,-3142.10287675,0.00030308,4]
[311551100,1705221042190,-583.32251506,0.00030309,2]
[311551101,1705221042201,-680.47486431,0.0003031,2]
[311551102,1705221042212,-282.77222254,0.0003031,3]
[311551103,1705221042224,-154.9690062,0.0003031,2]
[311551104,1705221042235,-200.0,0.00030626,15]
[311551105,1705221042246,-41898.59782542,0.000309,2]
[311551106,1705221042257,-1382.0,0.0003097,30]
[311551107,1705221042268,-1382.0,0.0003098,30]
[311551108,1705221042279,-638.46,0.00030987,2]
[311551109,1705221042290,-638.46,0.00030987,2]
[311551110,1705221042302,-638.46,0.00030987,2]
[311551111,1705221042312,-638.46,0.00030987,2]
[311551112,1705221042323,-638.46,0.00030987,2]
[311551113,1705221042334,-638.46,0.00030987,2]
[311551114,1705221042344,-638.46,0.00030987,2]
[311551115,1705221042355,-638.46,0.00030987,2]
[311551116,1705221042365,-1382.0,0.0003099,30]
[311551117,1705221042503,-213.03558,0.00030998,4]
[311551118,1705221042512,-4328.89578152,0.00030998,4]
[311551119,1705221042522,-569.57191408,0.00030998,4]
[311551120,1705221042531,-107.41410388,0.00030998,4]
[311551121,1705221042544,-1050.84836442,0.00030998,4]
[311551122,1705221042554,-358.04832608,0.00030998,2]
[311551123,1705221042563,-155.19515001,0.00030998,4]
[311551124,1705221042572,-211.25872826,0.00030998,4]
[311551129,1705221043147,-154.98450155,0.00024999,4]
[311551130,1705221043157,-984.20573231,0.00030998,4]
[311551131,1705221043167,-1233.80976617,0.00030999,4]
[311551132,1705221043207,-687.89099354,0.00030999,4]
[311551133,1705221043217,-500.0,0.00030999,2]
[311551134,1705221043227,-500.0,0.00030999,2]
[311551135,1705221043238,-500.0,0.00030999,2]
[311551136,1705221043247,-382.62454374,0.00030999,2]
[311551137,1705221043257,-500.0,0.00030999,2]
[311551138,1705221043266,-282.33945818,0.00030999,2]
[311551139,1705221043275,-155.20750907,0.00030999,2]
[311551140,1705221043285,-500.0,0.00030999,2]
[311551141,1705221043295,-500.0,0.00030999,2]
[311551142,1705221043304,-500.0,0.00030999,2]
[311551143,1705221043314,-500.0,0.00030999,2]
[311551144,1705221043323,-500.0,0.00030999,2]
[311551145,1705221043332,-370.90306582,0.00030999,2]
[311551146,1705221043342,-391.16972908,0.00030999,2]
[311551147,1705221043352,-155.35099403,0.00031,4]
[311551149,1705221043361,-156.90901959,0.00031,4]
[311551150,1705221043371,-23540.60468695,0.00031,4]
[311551166,1705221053214,3526.5818381,0.00022221,2]
[311551167,1705221053241,5000.0,0.00022221,2]
[311551168,1705221074497,6376.95102113,0.00019997,2]
[311551170,1705221087122,408.62454557,0.00022219,20]
[311551172,1705221140591,761.73082383,0.00019995,2]
[311551173,1705221149222,4061.88573165,0.00019995,2]
[311551174,1705221166134,88799.43242339,0.00019995,2]
[311551175,1705221166156,189158.29577547,0.00019995,2]
[311551176,1705221166506,-5776.56686829,0.00019995,2]
[311551177,1705221176007,-808.40696661,0.00019995,2]
[311551178,1705221176290,-16.49810136,0.00019995,2]
[311551179,1705221181118,260.35384667,0.00019994,7]
[311551180,1705221182525,-12000.0,0.00019995,2]
[311551181,1705221182677,-12000.0,0.00019995,2]
[311551182,1705221182800,-12000.0,0.00019995,2]
[311551183,1705221182956,-12000.0,0.00019995,2]
[311551184,1705221183089,-12000.0,0.00019995,2]
[311551185,1705221183215,-12000.0,0.00019995,2]
[311551186,1705221183339,-12000.0,0.00019995,2]
[311551187,1705221183501,-1115.64530026,0.00019794,2]
[311551188,1705221183530,-10884.35469974,0.00019995,2]
[311551189,1705221183847,-12000.0,0.00019995,2]
[311551190,1705221183887,-12000.0,0.00019995,2]
[311551191,1705221183961,-12000.0,0.00019995,2]
[311551192,1705221184014,-12000.0,0.00019995,2]
[311551193,1705221184134,-12000.0,0.00019995,2]
[311551194,1705221184416,-12000.0,0.00019995,2]
[311551195,1705221184536,-10475.3363073,0.00019995,2]
[311551196,1705221203110,260.35384667,0.00021992,7]
[311551197,1705221225111,184.69460654,0.00021991,7]
[311551198,1705221228138,-329.06037658,0.00019999,2]
[311551199,1705221228166,-145.60081717,0.0002,2]
[311551200,1705221228419,-9.68696314,0.0002,2]
[311551201,1705221263120,260.35384667,0.0002198,7]
[311551203,1705221283276,260.28590703,0.0002197,7]
[311551204,1705221308518,-202.3142506,0.0002,2]
[311551205,1705221308544,-206.10063028,0.0002,2]
[311551206,1705221308821,-8.33499757,0.0002,2]
[311551207,1705221338033,-1236.12438616,0.0002,2]
[311551208,1705221338166,-25.22702829,0.0002,2]
[311551209,1705221342116,-653.13906826,0.00020886,2]
[311551210,1705221342305,-13.32936874,0.00020886,2]
[311551213,1705221388580,-623.07522445,0.0002,2]
[311551214,1705221388607,-2027.0277025,0.00020886,2]
[311551215,1705221388663,-54.0837332,0.00020886,2]
[311551216,1705221395392,-294.0,0.00020886,2]
[311551217,1705221395528,-6.0,0.00020886,2]
[311551218,1705221402394,-2045.00168414,0.00020886,2]
[311551219,1705221402684,-41.73472825,0.00020886,2]
[311551220,1705221413424,-294.0,0.00020886,2]
[311551221,1705221413611,-6.0,0.00020886,2]
[311551222,1705221418012,-261.60767432,0.00020885,2]
[311551223,1705221418166,-5.33893213,0.00020885,2]
[311551226,1705221502783,-451.88585139,0.00020885,2]
[311551227,1705221502940,-9.22216023,0.00020885,2]
[311551228,1705221596936,-5853.148,0.00021796,3]
[311551229,1705221597110,-119.452,0.00021796,3]
[311551230,1705221602939,-169.8221,0.00020535,2]
[311551231,1705221602966,-212.91550156,0.00021707,2]
[311551232,1705221603208,-7.81097146,0.00021707,2]
[311551233,1705221605327,154.98450155,0.00020534,2]
[311551234,1705221606944,-154.98450155,0.00020534,4]
[311551235,1705221606971,-11845.01549845,0.00021797,2]
[311551236,1705221607230,-3353.96669232,0.00021797,2]
[311551237,1705221607590,8646.03330768,0.00021796,3]
[311551238,1705221607616,679.18669232,0.00021796,3]
[311551239,1705221612060,-1010.67065551,0.00020533,2]
[311551240,1705221612196,-20.62593174,0.00020533,2]
[311551241,1705221612757,298.26083422,0.00020533,2]
[311551242,1705221612790,329.06037658,0.00020533,2]
[311551243,1705221616351,-543.44534305,0.00021797,2]
[311551244,1705221616501,-11.09072129,0.00021797,2]
[311551245,1705221616528,-272.14753769,0.00021797,2]
[311551246,1705221618304,260.20708407,0.00021796,3]
[311551247,1705221618331,543.44534305,0.00021796,3]
[311551248,1705221618358,810.14992999,0.00021796,3]
[311551249,1705221618384,277.5734938,0.00021796,3]
[311551250,1705221618761,-5879.64414909,0.00021796,3]
[311551251,1705221621353,-2655.93180619,0.00021796,2]
[311551252,1705221621548,-54.20268992,0.00021796,2]
[311551253,1705221623447,154.98450155,0.00019624,3]
[311551254,1705221623678,-12000.0,0.00021797,2]
[311551255,1705221623791,-6877.03741997,0.00021797,2]
[311551256,1705221629666,-6346.333,0.00021796,3]
[311551257,1705221629791,-129.517,0.00021796,3]
[311551258,1705221631367,-12000.0,0.00021797,2]
[311551259,1705221631536,-7672.51156169,0.00021797,2]
[311551260,1705221631563,-4327.48843831,0.00021797,2]
[311551261,1705221631788,-9372.93726368,0.00021797,2]
[311551262,1705221636973,-12000.0,0.00021796,2]
[311551263,1705221637141,-12000.0,0.00021796,2]
[311551264,1705221637256,-12000.0,0.00021796,2]
[311551265,1705221637444,-910.61452095,0.00021796,2]
[311551266,1705221637470,-686.95863037,0.00021796,2]
[311551267,1705221640660,-5288.6092,0.00021796,3]
[311551268,1705221640790,-107.9308,0.00021796,3]
[311551269,1705221641368,-1995.08503751,0.00021797,2]
[311551270,1705221641432,154.98450155,0.00019624,3]
[311551271,1705221641549,-40.71602117,0.00021797,2]
[311551273,1705221647486,-12000.0,0.00021797,2]
[311551274,1705221647641,-7173.10109535,0.00021797,2]
[311551275,1705221647666,-4826.89890465,0.00021797,2]
[311551276,1705221647764,-8873.52679734,0.00021797,2]
[311551277,1705221651365,-4407.1776,0.00021794,3]
[311551278,1705221651469,-89.9424,0.00021794,3]
[311551279,1705221651755,-442.64571058,0.00021797,2]
[311551280,1705221651862,-9.03358593,0.00021797,2]
[311551281,1705221658182,-12000.0,0.00021797,2]
[311551282,1705221658465,-12000.0,0.00021797,2]
[311551283,1705221658578,-12000.0,0.00021797,2]
[311551284,1705221658740,-12000.0,0.00021797,2]
[311551285,1705221658866,-12000.0,0.00021797,2]
[311551286,1705221658961,-12000.0,0.00021797,2]
[311551287,1705221659069,-9099.53375786,0.00021797,2]
[311551288,1705221661443,154.98450155,0.00019624,3]
[311551289,1705221662156,3747.6,0.00021795,3]
[311551290,1705221663905,-12000.0,0.00020883,2]
[311551291,1705221664094,-12000.0,0.00020883,2]
[311551292,1705221664253,-900.0,0.00020883,2]
[311551294,1705221673486,-3060.54,0.00021792,3]
[311551295,1705221673675,-62.46,0.00021792,3]
[311551296,1705221684227,-154.98450155,0.00019622,3]
[311551297,1705221684255,-2547.35030997,0.00021792,3]
[311551298,1705221684356,-55.14969003,0.00021792,3]
[311551299,1705221694487,-2125.375,0.00021792,3]
[311551300,1705221694797,-43.375,0.00021792,3]
[311551301,1705221705621,-154.98450155,0.0001962,3]
[311551302,1705221705650,-1768.04450997,0.00021792,3]
[311551303,1705221705809,-39.24549003,0.00021792,3]
[311551304,1705221710215,-857.62521,0.00019619,2]
[311551305,1705221710426,-17.50255531,0.00019619,2]
[311551309,1705222002596,176.58117844,0.00019501,2]
[311551311,1705222017733,2731.03435751,0.00019597,5]
[311551313,1705222100732,24900.0,0.00018573,2]
[311551315,1705222110943,-154.98450155,0.00019557,2]
[311551316,1705222110965,-615.88989266,0.00019557,2]
[311551317,1705222110985,-594.28685136,0.00019558,2]
[311551318,1705222111005,-154.98450155,0.00019558,2]
[311551319,1705222111026,-1240.6740252,0.00019558,2]
[311551320,1705222111047,-298.26083422,0.00019558,2]
[311551321,1705222111068,-1085.91939346,0.00019559,3]
[311551322,1705222121355,200.0,0.00021512,7]
[311551323,1705222129838,283.09356306,0.00019469,2]
[311551324,1705222132678,3479.89143237,0.00019163,2]
[311551325,1705222162086,-154.98450155,0.00019544,2]
[311551326,1705222162106,-154.98450155,0.00019544,2]
[311551327,1705222162127,-154.98450155,0.00019545,2]
[311551328,1705222162150,-253.71660409,0.00019552,2]
[311551329,1705222162168,-154.98450155,0.00019552,2]
[311551330,1705222162188,-525.94938835,0.00019552,2]
[311551331,1705222162207,-154.98450155,0.00019552,2]
[311551332,1705222162226,-154.98450155,0.00019552,2]
[311551333,1705222162245,-174.97130102,0.00019552,2]
[311551334,1705222162264,-466.95348561,0.00019552,2]
[311551335,1705222162282,-198.9483755,0.00019552,2]
[311551336,1705222162301,-688.31895255,0.00019552,2]
[311551338,1705222195580,154.98450155,0.00019163,2]
[311551339,1705222225963,333.234218,0.00018533,2]
[311551361,1705222232356,-154.98450155,0.00019527,3]
[311551362,1705222232366,-160.77503701,0.00019527,2]
[311551363,1705222232376,-285.95535949,0.00019527,2]
[311551365,1705222232384,-123.97251642,0.00019527,2]
[311551367,1705222232396,-737.33572479,0.00019527,2]
[311551369,1705222232405,-1289.37,0.00019528,3]
[311551372,1705222232414,-166.42256377,0.00019528,2]
[311551374,1705222232423,-1074.47,0.00019528,3]
[311551377,1705222232432,-306.95623254,0.00019529,2]
[311551380,1705222232441,-261.93846151,0.00019529,2]
[311551383,1705222232450,-10512.10364483,0.00019529,2]
[311551385,1705222232459,-3740.30326134,0.00019529,2]
[311551387,1705222232468,-260.73622957,0.0001953,2]
[311551389,1705222232478,-2710.13449611,0.0001953,2]